fUST/lending_fUST_20250115
["ID","MTS","AMOUNT","RATE_DAILY","PERIOD"]
[348977680,1736911851457,-500.0,0.00019589,3]
[348977681,1736911851467,-648.65,0.00019589,3]
[348977682,1736911851477,-1674.79,0.00019589,3]
[348977683,1736911851487,-500.0,0.00019589,3]
[348977684,1736911851497,-500.0,0.00019589,3]
[348977685,1736911851507,-500.0,0.00019589,3]
[348977686,1736911851517,-505.90707936,0.00019589,3]
[348977687,1736911851527,-500.0,0.00019589,3]
[348977688,1736911851537,-894.14,0.00019589,3]
[348977689,1736911851550,-500.0,0.00019589,3]
[348977690,1736911851562,-933.53,0.00019589,3]
[348977691,1736911851572,-500.0,0.00019589,3]
[348977692,1736911851582,-500.0,0.00019589,3]
[348977693,1736911851591,-500.0,0.00019589,3]
[348977694,1736911851602,-353.40185077,0.00019589,3]
[348977695,1736911851611,-825.71,0.00019589,3]
[348977696,1736911851621,-500.0,0.00019589,3]
[348977697,1736911851632,-500.0,0.00019589,3]
[348977698,1736911851642,-500.0,0.00019589,3]
[348977699,1736911851652,-500.0,0.00019589,3]
[348977700,1736911851662,-500.0,0.00019589,3]
[348977701,1736911851671,-532.59,0.00019589,3]
[348977702,1736911851681,-505.07406262,0.00019589,3]
[348977703,1736911851691,-500.0,0.00019589,3]
[348977704,1736911851700,-500.0,0.00019589,3]
[348977705,1736911851711,-500.0,0.00019589,3]
[348977706,1736911851721,-500.0,0.00019589,3]
[348977707,1736911851730,-500.0,0.00019589,3]
[348977708,1736911851739,-503.35581042,0.00019589,3]
[348977709,1736911851813,-500.0,0.00019589,3]
[348977710,1736911851824,-500.0,0.00019589,3]
[348977711,1736911851835,-500.0,0.00019589,3]
[348977712,1736911851846,-500.0,0.00019589,3]
[348977713,1736911851856,-509.04036494,0.00019589,3]
[348977714,1736911851866,-500.0,0.00019589,3]
[348977715,1736911851876,-500.0,0.00019589,3]
[348977716,1736911851886,-500.0,0.00019589,3]
[348977717,1736911851895,-500.0,0.00019589,3]
[348977718,1736911851904,-1865.7,0.00019589,3]
[348977719,1736911851914,-500.0,0.00019589,3]
[348977720,1736911851923,-500.0,0.00019589,3]
[348977721,1736911851933,-1673.6,0.00019589,3]
[348977722,1736911851942,-500.0,0.00019589,3]
[348977723,1736911851951,-500.0,0.00019589,3]
[348977724,1736911851961,-500.0,0.00019589,3]
[348977725,1736911851971,-1832.83,0.00019589,3]
[348977726,1736911851981,-206.48859711,0.00019589,3]
[348977727,1736911851991,-500.0,0.00019589,3]
[348977728,1736911852001,-500.0,0.00019589,3]
[348977729,1736911852010,-500.0,0.00019589,3]
[348977730,1736911852019,-500.0,0.00019589,3]
[348977731,1736911852029,-500.0,0.00019589,3]
[348977732,1736911852039,-500.0,0.00019589,3]
[348977733,1736911852049,-1000.0,0.00019589,7]
[348977734,1736911852058,-503.0841399,0.00019589,3]
[348977735,1736911852068,-500.0,0.00019589,3]
[348977736,1736911852077,-500.0,0.00019589,3]
[348977737,1736911852087,-868.23,0.00019589,3]
[348977738,1736911852097,-725.7,0.00019589,3]
[348977739,1736911852107,-500.0,0.00019589,3]
[348977740,1736911852117,-503.36677905,0.00019589,3]
[348977741,1736911852127,-740.31,0.00019589,3]
[348977742,1736911852137,-500.0,0.00019589,3]
[348977743,1736911852146,-18061.88,0.00019589,3]
[348977744,1736911852156,-500.0,0.00019589,3]
[348977745,1736911852167,-500.0,0.00019589,3]
[348977746,1736911852177,-952.47,0.00019589,3]
[348977747,1736911852187,-500.0,0.00019589,3]
[348977748,1736911852196,-1308.88,0.00019589,3]
[348977749,1736911852206,-790.1,0.00019589,3]
[348977750,1736911852216,-500.0,0.00019589,3]
[348977751,1736911852225,-752.83,0.00019589,3]
[348977752,1736911852235,-504.51779526,0.00019589,3]
[348977753,1736911852244,-543.94,0.00019589,3]
[348977754,1736911852254,-500.0,0.00019589,3]
[348977755,1736911852263,-630.98,0.00019589,3]
[348977756,1736911852272,-500.0,0.00019589,3]
[348977757,1736911852282,-508.74864375,0.00019589,3]
[348977758,1736911852291,-500.0,0.00019589,3]
[348977759,1736911852303,-500.0,0.00019589,3]
[348977760,1736911852316,-500.0,0.00019589,3]
[348977761,1736911852326,-8533.19,0.000196,2]
[348977762,1736911852336,-151.0,0.000196,2]
[348977763,1736911852346,-166.0,0.00019613,2]
[348977764,1736911852356,-166.0,0.00019613,2]
[348977765,1736911852365,-166.0,0.00019613,2]
[348977766,1736911852375,-166.0,0.00019613,2]
[348977767,1736911852385,-166.0,0.00019613,2]
[348977768,1736911852395,-166.0,0.00019613,2]
[348977769,1736911852404,-166.0,0.00019613,2]
[348977770,1736911852414,-166.0,0.00019613,2]
[348977771,1736911852423,-172.0,0.00019613,2]
[348977772,1736911852433,-153.9757311,0.00019616,2]
[348977773,1736911852442,-153.9757311,0.00019616,2]
[348977774,1736911852452,-315.8619991,0.00019616,2]
[348977775,1736911852462,-214.9766468,0.00019616,2]
[348977776,1736911852472,-214.9766468,0.00019616,2]
[348977777,1736911852482,-214.9766468,0.00019616,2]
[348977778,1736911852491,-214.9766468,0.00019616,2]
[348977779,1736911852501,-170.0,0.00019646,2]
[348977780,1736911852511,-170.0,0.00019646,2]
[348977781,1736911852523,-170.0,0.00019646,2]
[348977782,1736911852533,-170.0,0.00019646,2]
[348977783,1736911852543,-170.0,0.00019646,2]
[348977784,1736911852552,-170.0,0.00019646,2]
[348977785,1736911852562,-174.0,0.00019646,2]
[348977786,1736911852571,-158.13117158,0.00019657,2]
[348977787,1736911852580,-151.0,0.000197,2]
[348977788,1736911852590,-151.0,0.000197,2]
[348977789,1736911852599,-167.77858701,0.00019714,2]
[348977790,1736911852609,-500.0,0.00019725,3]
[348977791,1736911852619,-500.0,0.00019725,3]
[348977792,1736911852629,-704.82,0.00019725,3]
[348977793,1736911852638,-504.41593864,0.00019726,3]
[348977794,1736911852648,-500.0,0.00019726,3]
[348977795,1736911852658,-587.54821028,0.00019726,3]
[348977796,1736911852667,-494.28038249,0.00019726,3]
[348977797,1736911852676,-500.0,0.00019726,3]
[348977798,1736911852686,-500.0,0.00019726,3]
[348977799,1736911852695,-500.0,0.00019726,3]
[348977800,1736911852705,-500.0,0.00019726,3]
[348977801,1736911852714,-504.47019473,0.00019726,3]
[348977802,1736911852723,-500.0,0.00019726,3]
[348977803,1736911852733,-500.0,0.00019726,3]
[348977804,1736911852742,-500.0,0.00019726,3]
[348977805,1736911852752,-500.0,0.00019726,3]
[348977806,1736911852761,-500.0,0.00019726,3]
[348977807,1736911852771,-508.21799356,0.00019726,3]
[348977808,1736911852780,-500.0,0.00019726,3]
[348977809,1736911852789,-500.0,0.00019726,3]
[348977810,1736911852799,-500.0,0.00019726,3]
[348977811,1736911852809,-500.0,0.00019726,3]
[348977812,1736911852818,-500.0,0.00019726,3]
[348977813,1736911852827,-500.0,0.00019726,3]
[348977814,1736911852837,-500.0,0.00019726,3]
[348977815,1736911852847,-461.99667671,0.00019726,3]
[348977816,1736911852857,-500.0,0.00019726,3]
[348977817,1736911852867,-500.0,0.00019726,3]
[348977818,1736911852876,-484.89078365,0.00019726,3]
[348977819,1736911852886,-500.0,0.00019726,3]
[348977820,1736911852895,-500.0,0.00019726,3]
[348977821,1736911852905,-500.0,0.00019726,3]
[348977822,1736911852914,-500.0,0.00019726,3]
[348977823,1736911852924,-500.0,0.00019726,3]
[348977824,1736911852934,-500.0,0.00019726,3]
[348977825,1736911853007,-500.0,0.00019726,3]
[348977826,1736911853016,-500.0,0.00019726,3]
[348977827,1736911853026,-500.0,0.00019726,3]
[348977828,1736911853035,-500.0,0.00019726,3]
[348977829,1736911853045,-671.94,0.00019726,3]
[348977830,1736911853055,-507.11163233,0.00019726,3]
[348977831,1736911853065,-500.0,0.00019726,3]
[348977832,1736911853074,-502.84754791,0.00019726,3]
[348977833,1736911853084,-500.0,0.00019726,3]
[348977834,1736911853094,-582.06,0.00019726,3]
[348977835,1736911853104,-500.0,0.00019726,3]
[348977836,1736911853113,-500.0,0.00019726,3]
[348977837,1736911853123,-500.0,0.00019726,3]
[348977838,1736911853132,-500.0,0.00019726,3]
[348977839,1736911853141,-500.0,0.00019726,3]
[348977840,1736911853150,-500.0,0.00019726,3]
[348977841,1736911853160,-500.0,0.00019726,3]
[348977842,1736911853169,-500.0,0.00019726,3]
[348977843,1736911853178,-500.0,0.00019726,3]
[348977844,1736911853188,-500.0,0.00019726,3]
[348977845,1736911853197,-510.27418301,0.00019726,3]
[348977846,1736911853207,-1000.0,0.00019726,30]
[348977847,1736911853217,-506.43288251,0.00019726,3]
[348977848,1736911853226,-500.0,0.00019726,3]
[348977849,1736911853236,-1449.66,0.00019726,3]
[348977850,1736911853246,-500.0,0.00019726,3]
[348977851,1736911853257,-504.51404051,0.00019726,3]
[348977852,1736911853267,-500.0,0.00019726,3]
[348977853,1736911853277,-500.0,0.00019726,3]
[348977854,1736911853287,-500.0,0.00019726,3]
[348977855,1736911853298,-505.04765497,0.00019726,3]
[348977856,1736911853311,-500.0,0.00019726,3]
[348977857,1736911853321,-500.0,0.00019726,3]
[348977858,1736911853331,-500.0,0.00019726,3]
[348977859,1736911853341,-500.0,0.00019726,3]
[348977860,1736911853351,-500.0,0.00019726,3]
[348977861,1736911853362,-500.0,0.00019726,3]
[348977862,1736911853372,-500.0,0.00019726,3]
[348977863,1736911853382,-500.0,0.00019726,3]
[348977864,1736911853393,-500.0,0.00019726,3]
[348977865,1736911853403,-500.0,0.00019726,3]
[348977866,1736911853413,-510.42236845,0.00019726,3]
[348977867,1736911853423,-520.68922263,0.00019726,3]
[348977868,1736911853433,-500.0,0.00019726,3]
[348977869,1736911853443,-351.38178657,0.00019726,3]
[348977870,1736911853453,-680.9,0.00019726,3]
[348977871,1736911853463,-500.0,0.00019726,3]
[348977872,1736911853472,-500.0,0.00019726,3]
[348977873,1736911853481,-500.0,0.00019726,3]
[348977874,1736911853491,-500.0,0.00019726,3]
[348977875,1736911853500,-500.0,0.00019726,3]
[348977876,1736911853510,-500.0,0.00019726,3]
[348977877,1736911853519,-500.0,0.00019726,3]
[348977878,1736911853529,-500.0,0.00019726,3]
[348977879,1736911853538,-500.0,0.00019726,3]
[348977880,1736911853548,-500.0,0.00019726,3]
[348977881,1736911853558,-500.0,0.00019726,3]
[348977882,1736911853567,-500.0,0.00019726,3]
[348977883,1736911853577,-179.55914757,0.00019726,3]
[348977884,1736911853586,-500.0,0.00019726,3]
[348977885,1736911853595,-437.94541262,0.00019726,3]
[348977886,1736911853605,-500.0,0.00019726,3]
[348977887,1736911853614,-500.0,0.00019726,3]
[348977888,1736911853623,-500.0,0.00019726,3]
[348977889,1736911853632,-182.10023613,0.00019726,3]
[348977890,1736911853642,-500.0,0.00019726,3]
[348977891,1736911853652,-500.0,0.00019726,3]
[348977892,1736911853663,-500.0,0.00019726,3]
[348977893,1736911853673,-498.69177975,0.00019726,3]
[348977894,1736911853683,-5112.05,0.00019726,2]
[348977895,1736911853693,-504.04470036,0.00019726,3]
[348977896,1736911853703,-500.0,0.00019726,3]
[348977897,1736911853713,-500.0,0.00019726,2]
[348977898,1736911853723,-500.0,0.00019726,3]
[348977899,1736911853734,-952.49,0.00019726,3]
[348977900,1736911853743,-2810.49,0.00019726,3]
[348977901,1736911853753,-516.34838377,0.00019726,3]
[348977902,1736911853763,-500.0,0.00019726,3]
[348977903,1736911853773,-500.0,0.00019726,3]
[348977904,1736911853784,-500.0,0.00019726,3]
[348977905,1736911853794,-500.0,0.00019726,3]
[348977906,1736911853806,-915.47,0.00019726,3]
[348977907,1736911853816,-500.0,0.00019726,3]
[348977908,1736911853826,-435.90909585,0.00019726,3]
[348977909,1736911853836,-500.0,0.00019726,3]
[348977910,1736911853846,-500.0,0.00019726,3]
[348977911,1736911853856,-500.0,0.00019726,3]
[348977912,1736911853867,-500.0,0.00019726,3]
[348977913,1736911853876,-500.0,0.00019726,3]
[348977914,1736911853886,-500.0,0.00019726,3]
[348977915,1736911853895,-500.0,0.00019726,3]
[348977916,1736911853906,-500.0,0.00019726,3]
[348977917,1736911853916,-500.0,0.00019726,3]
[348977918,1736911853926,-500.0,0.00019726,3]
[348977919,1736911853935,-1246.12,0.00019726,3]
[348977920,1736911853946,-500.0,0.00019726,3]
[348977921,1736911853955,-503.9859159,0.00019726,3]
[348977922,1736911853965,-648.65,0.00019726,3]
[348977923,1736911853975,-1674.79,0.00019726,3]
[348977924,1736911853985,-500.0,0.00019726,3]
[348977925,1736911853995,-500.0,0.00019726,3]
[348977926,1736911854005,-500.0,0.00019726,3]
[348977927,1736911854014,-508.99430802,0.00019726,3]
[348977928,1736911854024,-894.14,0.00019726,3]
[348977929,1736911854034,-500.0,0.00019726,3]
[348977930,1736911854043,-933.53,0.00019726,3]
[348977931,1736911854056,-500.0,0.00019726,3]
[348977932,1736911854130,-500.0,0.00019726,3]
[348977933,1736911854141,-500.0,0.00019726,3]
[348977934,1736911854150,-825.71,0.00019726,3]
[348977935,1736911854160,-500.0,0.00019726,3]
[348977936,1736911854170,-500.0,0.00019726,3]
[348977937,1736911854180,-500.0,0.00019726,3]
[348977938,1736911854191,-500.0,0.00019726,3]
[348977939,1736911854201,-500.0,0.00019726,3]
[348977940,1736911854213,-532.59,0.00019726,3]
[348977941,1736911854223,-500.0,0.00019726,3]
[348977942,1736911854234,-500.0,0.00019726,3]
[348977943,1736911854245,-500.0,0.00019726,3]
[348977944,1736911854256,-500.0,0.00019726,3]
[348977945,1736911854266,-500.0,0.00019726,3]
[348977946,1736911854276,-500.0,0.00019726,3]
[348977947,1736911854285,-500.0,0.00019726,3]
[348977948,1736911854298,-505.0079904,0.00019726,3]
[348977949,1736911854312,-500.0,0.00019726,3]
[348977950,1736911854323,-500.0,0.00019726,3]
[348977951,1736911854333,-500.0,0.00019726,3]
[348977952,1736911854343,-500.0,0.00019726,3]
[348977953,1736911854355,-500.0,0.00019726,3]
[348977954,1736911854365,-1865.7,0.00019726,3]
[348977955,1736911854375,-390.24311543,0.00019726,3]
[348977956,1736911854387,-500.0,0.00019726,3]
[348977957,1736911854397,-1673.6,0.00019726,3]
[348977958,1736911854408,-500.0,0.00019726,3]
[348977959,1736911854417,-500.0,0.00019726,3]
[348977960,1736911854427,-500.0,0.00019726,3]
[348977961,1736911854437,-1832.83,0.00019726,3]
[348977962,1736911854447,-500.0,0.00019726,3]
[348977963,1736911854457,-502.94856956,0.00019726,3]
[348977964,1736911854467,-500.0,0.00019726,3]
[348977965,1736911854477,-500.0,0.00019726,3]
[348977966,1736911854486,-500.0,0.00019726,3]
[348977967,1736911854496,-500.0,0.00019726,3]
[348977968,1736911854506,-1000.0,0.00019726,7]
[348977969,1736911854516,-500.0,0.00019726,3]
[348977970,1736911854525,-500.0,0.00019726,3]
[348977971,1736911854535,-868.23,0.00019726,3]
[348977972,1736911854549,-725.7,0.00019726,3]
[348977973,1736911854558,-500.0,0.00019726,3]
[348977974,1736911854567,-740.31,0.00019726,3]
[348977975,1736911854577,-500.0,0.00019726,3]
[348977976,1736911854586,-18061.88,0.00019726,3]
[348977977,1736911854596,-500.0,0.00019726,3]
[348977978,1736911854606,-500.0,0.00019726,3]
[348977979,1736911854615,-952.47,0.00019726,3]
[348977980,1736911854626,-500.0,0.00019726,3]
[348977981,1736911854644,-1308.88,0.00019726,3]
[348977982,1736911854661,-790.1,0.00019726,3]
[348977983,1736911854678,-500.0,0.00019726,3]
[348977984,1736911854697,-752.83,0.00019726,3]
[348977985,1736911854716,-543.94,0.00019726,3]
[348977986,1736911854732,-500.0,0.00019726,3]
[348977987,1736911854751,-630.98,0.00019726,3]
[348977988,1736911854765,-500.0,0.00019726,3]
[348977989,1736911854782,-500.0,0.00019726,3]
[348977990,1736911854801,-500.0,0.00019726,3]
[348977991,1736911854820,-500.0,0.00019726,3]
[348977992,1736911854832,-1000.0,0.00019786,2]
[348977993,1736911854851,-1000.0,0.00019792,2]
[348977994,1736911854866,-500.0,0.00019797,3]
[348977995,1736911854882,-500.0,0.00019797,3]
[348977996,1736911854896,-500.0,0.00019797,3]
[348977997,1736911854912,-500.0,0.00019797,3]
[348977998,1736911854926,-535.48646764,0.00019797,3]
[348977999,1736911854942,-704.82,0.00019797,3]
[348978000,1736911854957,-704.82,0.00019797,3]
[348978001,1736911854972,-704.82,0.00019797,3]
[348978002,1736911854987,-704.82,0.00019797,3]
[348978003,1736911855002,-1007.0575659,0.00019799,2]
[348978004,1736911855017,-153.9478634,0.000198,2]
[348978005,1736911855031,-153.9478634,0.000198,2]
[348978006,1736911855047,-151.0,0.000198,2]
[348978007,1736911855061,-500.0,0.00019862,3]
[348978008,1736911855075,-704.82,0.00019862,3]
[348978009,1736911855090,-500.0,0.00019863,3]
[348978010,1736911855105,-500.0,0.00019863,3]
[348978011,1736911855119,-500.0,0.00019863,3]
[348978012,1736911855134,-500.0,0.00019863,3]
[348978013,1736911855149,-500.0,0.00019863,3]
[348978014,1736911855164,-500.0,0.00019863,3]
[348978015,1736911855178,-500.0,0.00019863,3]
[348978016,1736911855193,-504.80503079,0.00019863,3]
[348978017,1736911855207,-500.0,0.00019863,3]
[348978018,1736911855222,-500.0,0.00019863,3]
[348978019,1736911855237,-500.0,0.00019863,3]
[348978020,1736911855251,-500.0,0.00019863,3]
[348978021,1736911855267,-500.0,0.00019863,3]
[348978022,1736911855281,-513.80048629,0.00019863,3]
[348978023,1736911855298,-500.0,0.00019863,3]
[348978024,1736911855317,-500.0,0.00019863,3]
[348978025,1736911855332,-500.0,0.00019863,3]
[348978026,1736911855347,-500.0,0.00019863,3]
[348978027,1736911855362,-500.0,0.00019863,3]
[348978028,1736911855377,-500.0,0.00019863,3]
[348978029,1736911855474,-500.0,0.00019863,3]
[348978030,1736911855495,-508.37587753,0.00019863,3]
[348978031,1736911855506,-512.69139182,0.00019863,3]
[348978032,1736911855517,-500.0,0.00019863,3]
[348978033,1736911855527,-500.0,0.00019863,3]
[348978034,1736911855538,-505.17318729,0.00019863,3]
[348978035,1736911855549,-500.0,0.00019863,3]
[348978036,1736911855558,-500.0,0.00019863,3]
[348978037,1736911855568,-500.0,0.00019863,3]
[348978038,1736911855578,-671.94,0.00019863,3]
[348978039,1736911855588,-500.0,0.00019863,3]
[348978040,1736911855597,-500.0,0.00019863,3]
[348978041,1736911855608,-582.06,0.00019863,3]
[348978042,1736911855617,-500.0,0.00019863,3]
[348978043,1736911855627,-500.0,0.00019863,3]
[348978044,1736911855637,-500.0,0.00019863,3]
[348978045,1736911855647,-503.98643427,0.00019863,3]
[348978046,1736911855658,-500.0,0.00019863,3]
[348978047,1736911855668,-500.0,0.00019863,3]
[348978048,1736911855678,-500.0,0.00019863,3]
[348978049,1736911855687,-500.0,0.00019863,3]
[348978050,1736911855697,-500.0,0.00019863,3]
[348978051,1736911855706,-500.0,0.00019863,3]
[348978052,1736911855715,-738.76329049,0.00019863,30]
[348978053,1736911855727,-500.0,0.00019863,3]
[348978054,1736911855737,-1449.66,0.00019863,3]
[348978055,1736911855746,-507.93520715,0.00019863,3]
[348978056,1736911855756,-500.0,0.00019863,3]
[348978057,1736911855767,-500.0,0.00019863,3]
[348978058,1736911855777,-500.0,0.00019863,3]
[348978059,1736911855786,-500.0,0.00019863,3]
[348978060,1736911855796,-509.24651302,0.00019863,9]
[348978061,1736911855806,-500.0,0.00019863,3]
[348978062,1736911855815,-500.0,0.00019863,3]
[348978063,1736911855825,-500.0,0.00019863,3]
[348978064,1736911855835,-500.0,0.00019863,3]
[348978065,1736911855844,-500.0,0.00019863,3]
[348978066,1736911855853,-500.0,0.00019863,3]
[348978067,1736911855863,-500.0,0.00019863,3]
[348978068,1736911855873,-500.0,0.00019863,3]
[348978069,1736911855882,-500.0,0.00019863,3]
[348978070,1736911855892,-500.0,0.00019863,3]
[348978071,1736911855901,-680.9,0.00019863,3]
[348978072,1736911855911,-500.0,0.00019863,3]
[348978073,1736911855920,-500.0,0.00019863,3]
[348978074,1736911855929,-500.0,0.00019863,3]
[348978075,1736911855939,-500.0,0.00019863,3]
[348978076,1736911855948,-500.0,0.00019863,3]
[348978077,1736911855958,-510.42339776,0.00019863,3]
[348978078,1736911855967,-509.13793445,0.00019863,3]
[348978079,1736911855976,-500.0,0.00019863,3]
[348978080,1736911855985,-500.0,0.00019863,3]
[348978081,1736911855995,-500.0,0.00019863,3]
[348978082,1736911856005,-500.0,0.00019863,3]
[348978083,1736911856014,-500.0,0.00019863,3]
[348978084,1736911856023,-505.59250195,0.00019863,3]
[348978085,1736911856033,-490.19593004,0.00019863,3]
[348978086,1736911856043,-500.0,0.00019863,3]
[348978087,1736911856053,-500.0,0.00019863,3]
[348978088,1736911856062,-500.0,0.00019863,3]
[348978089,1736911856071,-508.72386539,0.00019863,3]
[348978090,1736911856081,-500.0,0.00019863,3]
[348978091,1736911856091,-5112.05,0.00019863,2]
[348978092,1736911856101,-500.0,0.00019863,3]
[348978093,1736911856111,-500.0,0.00019863,2]
[348978094,1736911856120,-500.0,0.00019863,3]
[348978095,1736911856130,-952.49,0.00019863,3]
[348978096,1736911856139,-2810.49,0.00019863,3]
[348978097,1736911856149,-500.0,0.00019863,3]
[348978098,1736911856158,-500.0,0.00019863,3]
[348978099,1736911856167,-504.55250368,0.00019863,3]
[348978100,1736911856177,-500.0,0.00019863,3]
[348978101,1736911856188,-915.47,0.00019863,3]
[348978102,1736911856198,-500.0,0.00019863,3]
[348978103,1736911856208,-500.0,0.00019863,3]
[348978104,1736911856218,-505.82905988,0.00019863,3]
[348978105,1736911856228,-638.94149389,0.00019863,3]
[348978106,1736911856238,-500.0,0.00019863,3]
[348978107,1736911856247,-500.0,0.00019863,3]
[348978108,1736911856257,-500.0,0.00019863,3]
[348978109,1736911856267,-500.0,0.00019863,3]
[348978110,1736911856278,-506.0789489,0.00019863,3]
[348978111,1736911856288,-500.0,0.00019863,3]
[348978112,1736911856301,-500.0,0.00019863,3]
[348978113,1736911856315,-1246.12,0.00019863,3]
[348978114,1736911856325,-500.0,0.00019863,3]
[348978115,1736911856336,-648.65,0.00019863,3]
[348978116,1736911856345,-1674.79,0.00019863,3]
[348978117,1736911856356,-510.90384221,0.00019863,3]
[348978118,1736911856377,-505.96184033,0.00019863,3]
[348978119,1736911856390,-500.0,0.00019863,3]
[348978120,1736911856401,-894.14,0.00019863,3]
[348978121,1736911856412,-510.5975882,0.00019863,3]
[348978122,1736911856422,-933.53,0.00019863,3]
[348978123,1736911856433,-500.0,0.00019863,3]
[348978124,1736911856445,-500.0,0.00019863,3]
[348978125,1736911856455,-513.27324469,0.00019863,3]
[348978126,1736911856466,-825.71,0.00019863,3]
[348978127,1736911856477,-500.0,0.00019863,3]
[348978128,1736911856488,-500.0,0.00019863,3]
[348978129,1736911856498,-500.0,0.00019863,3]
[348978130,1736911856510,-597.10883067,0.00019863,3]
[348978131,1736911856522,-500.0,0.00019863,3]
[348978132,1736911856532,-532.59,0.00019863,3]
[348978133,1736911856543,-500.0,0.00019863,3]
[348978134,1736911856555,-434.93455231,0.00019863,3]
[348978135,1736911856565,-500.0,0.00019863,3]
[348978136,1736911856575,-500.0,0.00019863,3]
[348978137,1736911856585,-500.0,0.00019863,3]
[348978138,1736911856688,-509.78900239,0.00019863,3]
[348978139,1736911856698,-500.0,0.00019863,3]
[348978140,1736911856709,-500.0,0.00019863,3]
[348978141,1736911856718,-500.0,0.00019863,3]
[348978142,1736911856728,-500.0,0.00019863,3]
[348978143,1736911856738,-500.0,0.00019863,3]
[348978144,1736911856748,-558.17046105,0.00019863,3]
[348978145,1736911856757,-1865.7,0.00019863,3]
[348978146,1736911856767,-500.0,0.00019863,3]
[348978147,1736911856776,-1673.6,0.00019863,3]
[348978148,1736911856786,-500.0,0.00019863,3]
[348978149,1736911856795,-500.0,0.00019863,3]
[348978150,1736911856805,-526.04168114,0.00019863,3]
[348978151,1736911856815,-1832.83,0.00019863,3]
[348978152,1736911856825,-500.0,0.00019863,3]
[348978153,1736911856834,-500.0,0.00019863,3]
[348978154,1736911856844,-500.0,0.00019863,3]
[348978155,1736911856854,-500.0,0.00019863,3]
[348978156,1736911856863,-503.95101702,0.00019863,3]
[348978157,1736911856873,-212.17361621,0.00019863,7]
[348978158,1736911856883,-553.57661299,0.00019863,3]
[348978159,1736911856893,-500.0,0.00019863,3]
[348978160,1736911856902,-868.23,0.00019863,3]
[348978161,1736911856912,-725.7,0.00019863,3]
[348978162,1736911856922,-274.11301989,0.00019863,3]
[348978163,1736911856931,-740.31,0.00019863,3]
[348978164,1736911856941,-500.0,0.00019863,3]
[348978165,1736911856951,-18061.88,0.00019863,3]
[348978166,1736911856961,-505.56967312,0.00019863,3]
[348978167,1736911856971,-500.0,0.00019863,3]
[348978168,1736911856981,-952.47,0.00019863,3]
[348978169,1736911856991,-500.0,0.00019863,3]
[348978170,1736911857001,-1308.88,0.00019863,3]
[348978171,1736911857011,-790.1,0.00019863,3]
[348978172,1736911857020,-500.0,0.00019863,3]
[348978173,1736911857029,-752.83,0.00019863,3]
[348978174,1736911857039,-543.94,0.00019863,3]
[348978175,1736911857049,-500.0,0.00019863,3]
[348978176,1736911857058,-630.98,0.00019863,3]
[348978177,1736911857068,-500.0,0.00019863,3]
[348978178,1736911857078,-500.0,0.00019863,3]
[348978179,1736911857087,-509.31904343,0.00019863,3]